fUSD/lending_fUSD_20250629
["ID","MTS","AMOUNT","RATE_DAILY","PERIOD"]
[368495964,1751190792758,-490.0,0.00032054,3]
[368495965,1751190792767,-554.54966048,0.00032054,3]
[368495966,1751190792777,-500.0,0.00032054,7]
[368495967,1751190792786,-948.9,0.00032054,3]
[368495968,1751190792796,-667.1,0.00032054,3]
[368495969,1751190792805,-513.09,0.00032054,3]
[368495970,1751190792815,-978.74,0.00032054,3]
[368495971,1751190792824,-642.29,0.00032054,3]
[368495972,1751190792833,-490.0,0.00032054,3]
[368495973,1751190792842,-490.0,0.00032054,3]
[368495974,1751190792851,-1186.44,0.00032054,3]
[368495975,1751190792861,-490.0,0.00032054,3]
[368495976,1751190792870,-490.0,0.00032054,3]
[368495977,1751190792879,-2554.302964,0.00032054,3]
[368495978,1751190792888,-490.0,0.00032054,3]
[368495979,1751190792897,-853.16,0.00032054,3]
[368495980,1751190792906,-2816.157543,0.00032054,3]
[368495981,1751190792915,-158.454064,0.00032054,3]
[368495982,1751190792924,-2200.380726,0.00032054,3]
[368495983,1751190792934,-151.959343,0.00032054,3]
[368495984,1751190792943,-500.85,0.00032054,3]
[368495985,1751190792953,-392.680419,0.00032054,3]
[368495986,1751190792962,-490.0,0.00032054,3]
[368495987,1751190792973,-887.72,0.00032054,3]
[368495988,1751190792983,-556.18,0.00032054,3]
[368495989,1751190792992,-656.47,0.00032054,3]
[368495990,1751190793002,-571.97,0.00032054,3]
[368495991,1751190793011,-610.85616054,0.00032054,3]
[368495992,1751190793020,-858.42,0.00032054,3]
[368495993,1751190793031,-490.0,0.00032054,3]
[368495994,1751190793040,-1167.71,0.00032054,3]
[368495995,1751190793049,-648.74,0.00032054,3]
[368495996,1751190793058,-167.777922,0.00032054,3]
[368495997,1751190793068,-642.42,0.00032054,3]
[368495998,1751190793077,-523.68,0.00032054,3]
[368495999,1751190793086,-490.0,0.00032054,3]
[368496000,1751190793097,-625.75,0.00032054,3]
[368496001,1751190793107,-490.0,0.00032054,3]
[368496002,1751190793116,-1529.36,0.00032054,3]
[368496003,1751190793126,-725.47,0.00032054,3]
[368496004,1751190793135,-167.777922,0.00032054,3]
[368496005,1751190793145,-490.0,0.00032054,3]
[368496006,1751190793154,-1837.93,0.00032054,3]
[368496007,1751190793164,-961.81,0.00032054,3]
[368496008,1751190793173,-677.59,0.00032054,3]
[368496009,1751190793182,-490.0,0.00032054,3]
[368496010,1751190793192,-490.0,0.00032054,3]
[368496011,1751190793201,-490.0,0.00032054,3]
[368496012,1751190793211,-811.6,0.00032054,3]
[368496013,1751190793220,-490.0,0.00032054,3]
[368496014,1751190793230,-701.76,0.00032054,3]
[368496015,1751190793239,-801.55,0.00032054,3]
[368496016,1751190793248,-493.56,0.00032054,3]
[368496017,1751190793258,-490.0,0.00032054,3]
[368496018,1751190793268,-399.26630499,0.00032054,3]
[368496019,1751190793278,-590.68,0.00032054,3]
[368496020,1751190793288,-329.48976418,0.00032054,3]
[368496021,1751190793298,-490.0,0.00032054,3]
[368496022,1751190793307,-740.41,0.00032054,3]
[368496023,1751190793316,-930.82,0.00032054,3]
[368496024,1751190793326,-1134.82,0.00032054,3]
[368496025,1751190793336,-629.08,0.00032054,3]
[368496026,1751190793345,-507.56,0.00032054,3]
[368496027,1751190793354,-1395.58,0.00032054,3]
[368496028,1751190793364,-508.09,0.00032054,3]
[368496029,1751190793373,-596.83,0.00032054,3]
[368496030,1751190793383,-516.57,0.00032054,3]
[368496031,1751190793392,-1527.96,0.00032054,3]
[368496032,1751190793402,-2015.14,0.00032054,3]
[368496033,1751190793411,-615.0,0.00032054,3]
[368496034,1751190793421,-490.0,0.00032054,3]
[368496035,1751190793430,-889.47,0.00032054,3]
[368496036,1751190793440,-2302.9,0.00032054,3]
[368496037,1751190793449,-945.27,0.00032054,3]
[368496038,1751190793459,-743.01,0.00032054,3]
[368496039,1751190793468,-643.27,0.00032054,3]
[368496040,1751190793480,-1940.61,0.00032054,3]
[368496041,1751190793500,-1952.95,0.00032054,3]
[368496042,1751190793510,-1201.96,0.00032054,3]
[368496043,1751190793520,-1310.06,0.00032054,3]
[368496044,1751190793530,-369.84,0.00032054,3]
[368496045,1751190793539,-1125.22,0.00032054,3]
[368496046,1751190793548,-1224.35,0.00032054,3]
[368496047,1751190793557,-490.0,0.00032054,3]
[368496048,1751190793568,-976.06,0.00032054,3]
[368496049,1751190793578,-1824.88,0.00032054,3]
[368496050,1751190793587,-749.58,0.00032054,3]
[368496051,1751190793597,-603.75,0.00032054,3]
[368496052,1751190793606,-957.88,0.00032054,3]
[368496053,1751190793615,-263.07874107,0.00032054,3]
[368496054,1751190793626,-490.0,0.00032054,3]
[368496055,1751190793635,-152.71351088,0.00032054,3]
[368496056,1751190793645,-538.77,0.00032054,3]
[368496057,1751190793655,-776.78,0.00032054,3]
[368496058,1751190793664,-960.82,0.00032054,3]
[368496059,1751190793674,-894.84,0.00032054,3]
[368496060,1751190793683,-490.0,0.00032054,3]
[368496061,1751190793692,-1904.77,0.00032054,3]
[368496062,1751190793701,-1462.39,0.00032054,3]
[368496063,1751190793711,-2300.89,0.00032054,3]
[368496064,1751190793720,-490.0,0.00032054,3]
[368496065,1751190793729,-650.78,0.00032054,3]
[368496066,1751190793739,-2228.41,0.00032054,3]
[368496067,1751190793748,-694.52,0.00032054,3]
[368496068,1751190793757,-490.0,0.00032054,3]
[368496069,1751190793767,-490.0,0.00032054,3]
[368496070,1751190793776,-1649.19,0.00032054,3]
[368496071,1751190793786,-2026.94,0.00032054,3]
[368496072,1751190793795,-490.0,0.00032054,3]
[368496073,1751190793807,-843.7,0.00032054,3]
[368496074,1751190793816,-490.0,0.00032054,3]
[368496075,1751190793825,-490.0,0.00032054,3]
[368496076,1751190793835,-490.0,0.00032054,3]
[368496077,1751190793844,-490.0,0.00032054,3]
[368496078,1751190793854,-571.61,0.00032054,3]
[368496079,1751190793864,-896.97,0.00032054,3]
[368496080,1751190793873,-594.67,0.00032054,3]
[368496081,1751190793883,-1556.08,0.00032054,3]
[368496082,1751190793893,-1147.84,0.00032054,3]
[368496083,1751190793903,-490.0,0.00032054,3]
[368496084,1751190793912,-1027.62,0.00032054,3]
[368496085,1751190793921,-707.16,0.00032054,3]
[368496086,1751190793930,-880.72,0.00032054,3]
[368496087,1751190793940,-792.35,0.00032054,3]
[368496088,1751190793950,-490.0,0.00032054,3]
[368496089,1751190793960,-490.0,0.00032054,3]
[368496090,1751190793970,-780.47,0.00032054,3]
[368496091,1751190793980,-560.33,0.00032054,3]
[368496092,1751190793989,-944.59,0.00032054,3]
[368496093,1751190793998,-1653.81,0.00032054,3]
[368496094,1751190794007,-525.19,0.00032054,3]
[368496095,1751190794017,-1620.77,0.00032054,3]
[368496096,1751190794027,-1900.77,0.00032054,3]
[368496097,1751190794036,-521.24,0.00032054,3]
[368496098,1751190794045,-1487.61,0.00032054,3]
[368496099,1751190794055,-1556.78,0.00032054,3]
[368496100,1751190794065,-1633.03,0.00032054,3]
[368496101,1751190794074,-1046.71,0.00032054,3]
[368496102,1751190794084,-506.3,0.00032054,3]
[368496103,1751190794093,-514.5,0.00032054,3]
[368496104,1751190794103,-490.0,0.00032054,3]
[368496105,1751190794113,-1936.24,0.00032054,3]
[368496106,1751190794123,-2262.43,0.00032054,3]
[368496107,1751190794133,-665.95,0.00032054,3]
[368496108,1751190794143,-2474.6,0.00032054,3]
[368496109,1751190794153,-1268.88,0.00032054,3]
[368496110,1751190794163,-689.16,0.00032054,3]
[368496111,1751190794172,-1400.07,0.00032054,3]
[368496112,1751190794181,-858.86,0.00032054,3]
[368496113,1751190794191,-730.59,0.00032054,3]
[368496114,1751190794200,-666.33,0.00032054,3]
[368496115,1751190794211,-1700.28,0.00032054,3]
[368496116,1751190794220,-818.45,0.00032054,3]
[368496117,1751190794229,-1024.15,0.00032054,3]
[368496118,1751190794238,-709.17,0.00032054,3]
[368496119,1751190794247,-1027.52,0.00032054,3]
[368496120,1751190794257,-2038.87,0.00032054,3]
[368496121,1751190794267,-534.02,0.00032054,3]
[368496122,1751190794277,-2394.84,0.00032054,3]
[368496123,1751190794286,-1167.05,0.00032054,3]
[368496124,1751190794295,-1561.51,0.00032054,3]
[368496125,1751190794304,-899.19,0.00032054,3]
[368496126,1751190794314,-935.31,0.00032054,3]
[368496127,1751190794323,-771.06,0.00032054,3]
[368496128,1751190794332,-610.33,0.00032054,3]
[368496129,1751190794342,-490.0,0.00032054,3]
[368496130,1751190794353,-1503.84,0.00032054,3]
[368496131,1751190794363,-1626.28,0.00032054,3]
[368496132,1751190794372,-566.4,0.00032054,3]
[368496133,1751190794381,-715.86,0.00032054,3]
[368496134,1751190794390,-934.93,0.00032054,3]
[368496135,1751190794400,-516.29,0.00032054,3]
[368496136,1751190794409,-589.35,0.00032054,3]
[368496137,1751190794419,-2211.02,0.00032054,3]
[368496138,1751190794428,-1313.26,0.00032054,3]
[368496139,1751190794439,-878.98,0.00032054,3]
[368496140,1751190794448,-2018.3,0.00032054,3]
[368496141,1751190794460,-1272.1,0.00032054,3]
[368496142,1751190794470,-1320.46,0.00032054,3]
[368496143,1751190794479,-2254.95,0.00032054,3]
[368496144,1751190794490,-490.0,0.00032054,3]
[368496145,1751190794501,-524.96022672,0.00032054,3]
[368496146,1751190794511,-801.49,0.00032054,3]
[368496147,1751190794522,-793.92,0.00032054,3]
[368496148,1751190794531,-1409.04,0.00032054,3]
[368496149,1751190794541,-566.98,0.00032054,3]
[368496150,1751190794550,-520.23,0.00032054,3]
[368496151,1751190794560,-855.39,0.00032054,3]
[368496152,1751190794570,-503.31,0.00032054,3]
[368496153,1751190794578,-1383.19,0.00032054,3]
[368496154,1751190794588,-301.79548693,0.00032054,3]
[368496155,1751190794597,-907.17,0.00032054,3]
[368496156,1751190794606,-1733.55,0.00032054,3]
[368496157,1751190794616,-1411.93,0.00032054,3]
[368496158,1751190794625,-490.0,0.00032054,3]
[368496159,1751190794635,-490.0,0.00032054,3]
[368496160,1751190794644,-1161.29,0.00032054,3]
[368496161,1751190794653,-490.0,0.00032054,3]
[368496162,1751190794662,-648.19,0.00032054,3]
[368496163,1751190794672,-664.2,0.00032054,3]
[368496164,1751190794682,-492.59,0.00032054,3]
[368496165,1751190794691,-1411.98,0.00032054,3]
[368496166,1751190794701,-490.0,0.00032054,3]
[368496167,1751190794710,-1476.05,0.00032054,3]
[368496168,1751190794719,-2483.68,0.00032054,3]
[368496169,1751190794729,-622.78,0.00032054,3]
[368496170,1751190794740,-2320.44,0.00032054,3]
[368496171,1751190794750,-1539.15,0.00032054,3]
[368496172,1751190794761,-894.95,0.00032054,3]
[368496173,1751190794770,-701.41,0.00032054,3]
[368496174,1751190794780,-526.1,0.00032054,3]
[368496175,1751190794789,-1005.08,0.00032054,3]
[368496176,1751190794800,-1199.97,0.00032054,3]
[368496177,1751190794810,-1032.78,0.00032054,3]
[368496178,1751190794820,-549.61,0.00032054,3]
[368496179,1751190794831,-1283.76,0.00032054,3]
[368496180,1751190794841,-901.15,0.00032054,3]
[368496181,1751190794851,-545.6,0.00032054,3]
[368496182,1751190794860,-841.45,0.00032054,3]
[368496183,1751190794870,-525.0,0.00032054,3]
[368496184,1751190794879,-908.9,0.00032054,3]
[368496185,1751190794889,-490.0,0.00032054,3]
[368496186,1751190794898,-490.0,0.00032054,3]
[368496187,1751190794908,-1956.7,0.00032054,3]
[368496188,1751190794918,-1559.17,0.00032054,3]
[368496189,1751190794928,-490.0,0.00032054,3]
[368496190,1751190794939,-772.36,0.00032054,3]
[368496191,1751190794948,-1731.31,0.00032054,3]
[368496192,1751190794958,-1241.41,0.00032054,3]
[368496193,1751190794968,-490.0,0.00032054,3]
[368496194,1751190794977,-490.0,0.00032054,3]
[368496195,1751190794988,-2257.75,0.00032054,3]
[368496196,1751190794998,-1736.54,0.00032054,3]
[368496197,1751190795007,-2325.03,0.00032054,3]
[368496198,1751190795019,-613.43,0.00032054,3]
[368496199,1751190795031,-1117.78,0.00032054,3]
[368496200,1751190795042,-896.69,0.00032054,3]
[368496201,1751190795053,-998.0,0.00032054,3]
[368496202,1751190795063,-1022.6,0.00032054,3]
[368496203,1751190795074,-1382.19,0.00032054,3]
[368496204,1751190795085,-1087.69,0.00032054,3]
[368496205,1751190795096,-937.32,0.00032054,3]
[368496206,1751190795108,-205.50444577,0.00032054,3]
[368496207,1751190795122,-2003.29,0.00032054,3]
[368496208,1751190795134,-1073.82,0.00032054,3]
[368496209,1751190795145,-1428.66,0.00032054,3]
[368496210,1751190795156,-906.56,0.00032054,3]
[368496211,1751190795167,-751.94,0.00032054,3]
[368496212,1751190795178,-490.0,0.00032054,3]
[368496213,1751190795189,-1284.2,0.00032054,3]
[368496214,1751190795199,-995.73,0.00032054,3]
[368496215,1751190795211,-490.0,0.00032054,3]
[368496216,1751190795223,-730.89,0.00032054,3]
[368496217,1751190795233,-490.0,0.00032054,3]
[368496218,1751190795243,-490.0,0.00032054,3]
[368496219,1751190795254,-490.0,0.00032054,3]
[368496220,1751190795264,-3819.49,0.00032054,3]
[368496221,1751190795274,-614.58,0.00032054,3]
[368496222,1751190795284,-2099.43,0.00032054,3]
[368496223,1751190795294,-591.09,0.00032054,3]
[368496224,1751190795304,-1763.09,0.00032054,3]
[368496225,1751190795313,-930.34,0.00032054,3]
[368496226,1751190795323,-1553.22,0.00032054,3]
[368496227,1751190795333,-490.0,0.00032054,3]
[368496228,1751190795343,-935.65,0.00032054,3]
[368496229,1751190795353,-490.0,0.00032054,3]
[368496230,1751190795363,-587.32,0.00032054,3]
[368496231,1751190795372,-4450.47,0.00032054,3]
[368496232,1751190795382,-1288.37,0.00032054,3]
[368496233,1751190795392,-490.0,0.00032054,3]
[368496234,1751190795401,-528.19,0.00032054,3]
[368496235,1751190795411,-959.78,0.00032054,3]
[368496236,1751190795421,-766.16,0.00032054,3]
[368496237,1751190795431,-1454.99,0.00032054,3]
[368496238,1751190795441,-490.0,0.00032054,3]
[368496239,1751190795450,-1177.8,0.00032054,3]
[368496240,1751190795459,-1065.99,0.00032054,3]
[368496241,1751190795468,-921.89,0.00032054,3]
[368496242,1751190795477,-1049.98,0.00032054,3]
[368496243,1751190795488,-490.0,0.00032054,3]
[368496244,1751190795499,-603.29,0.00032054,3]
[368496245,1751190795509,-490.0,0.00032054,3]
[368496246,1751190795519,-1101.22,0.00032054,3]
[368496247,1751190795528,-490.0,0.00032054,3]
[368496248,1751190795538,-1690.83,0.00032054,3]
[368496249,1751190795547,-494.25,0.00032054,3]
[368496250,1751190795556,-608.46,0.00032054,3]
[368496251,1751190795567,-916.39,0.00032054,3]
[368496252,1751190795576,-555.36,0.00032054,3]
[368496253,1751190795585,-573.71,0.00032054,3]
[368496254,1751190795595,-1033.94,0.00032054,3]
[368496255,1751190795604,-1394.52,0.00032054,3]
[368496256,1751190795613,-841.15,0.00032054,3]
[368496257,1751190795623,-18048.03,0.00032054,3]
[368496258,1751190795632,-698.3,0.00032054,3]
[368496259,1751190795641,-814.68,0.00032054,3]
[368496260,1751190795651,-860.32,0.00032054,3]
[368496261,1751190795661,-817.07,0.00032054,3]
[368496262,1751190795670,-994.63,0.00032054,3]
[368496263,1751190795679,-1083.78,0.00032054,3]
[368496264,1751190795689,-895.73,0.00032054,3]
[368496265,1751190795698,-1619.71,0.00032054,3]
[368496266,1751190795707,-2039.79,0.00032054,3]
[368496267,1751190795717,-490.0,0.00032054,3]
[368496268,1751190795726,-627.15,0.00032054,3]
[368496269,1751190795735,-1338.17,0.00032054,3]
[368496270,1751190795745,-522.56,0.00032054,3]
[368496271,1751190795755,-5045.19,0.00032054,3]
[368496272,1751190795764,-732.19,0.00032054,3]
[368496273,1751190795773,-490.0,0.00032054,3]
[368496274,1751190795782,-2735.95,0.00032054,3]
[368496275,1751190795792,-1159.62,0.00032054,3]
[368496276,1751190795802,-557.27,0.00032054,3]
[368496277,1751190795811,-1735.18,0.00032054,3]
[368496278,1751190795821,-2798.62,0.00032054,3]
[368496279,1751190795831,-795.99,0.00032054,3]
[368496280,1751190795840,-2632.4,0.00032054,3]
[368496281,1751190795850,-890.5,0.00032054,3]
[368496282,1751190795859,-2676.96,0.00032054,3]
[368496283,1751190795869,-815.43,0.00032054,3]
[368496284,1751190795879,-490.0,0.00032054,3]
[368496285,1751190795888,-2287.33,0.00032054,3]
[368496286,1751190795897,-7199.68,0.00032054,3]
[368496287,1751190795908,-1083.86,0.00032054,3]
[368496288,1751190795919,-1198.65,0.00032054,3]
[368496289,1751190795928,-564.45,0.00032054,3]
[368496290,1751190795938,-490.0,0.00032054,3]
[368496291,1751190795947,-4926.93,0.00032054,3]
[368496292,1751190795957,-2111.85,0.00032054,3]
[368496293,1751190795967,-2504.77,0.00032054,3]
[368496294,1751190795977,-670.5,0.00032054,3]
[368496295,1751190795987,-9168.68,0.00032054,3]
[368496296,1751190795997,-1466.04,0.00032054,3]
[368496297,1751190796007,-148479.19,0.00032054,3]
[368496298,1751190796017,-995.99,0.00032054,3]
[368496299,1751190796027,-884.61,0.00032054,3]
[368496300,1751190796037,-1110.23,0.00032054,3]
[368496301,1751190796047,-3927.92,0.00032054,3]
[368496302,1751190796056,-1262.58,0.00032054,3]
[368496303,1751190796066,-490.0,0.00032054,3]
[368496304,1751190796076,-1550.57,0.00032054,3]
[368496305,1751190796086,-799.02,0.00032054,3]
[368496306,1751190796096,-4423.72,0.00032054,3]
[368496307,1751190796107,-1420.75,0.00032054,3]
[368496308,1751190796116,-2359.81,0.00032054,3]
[368496309,1751190796126,-612.29,0.00032054,3]
[368496310,1751190796137,-2220.09,0.00032054,3]
[368496311,1751190796147,-490.0,0.00032054,3]
[368496312,1751190796156,-1116.8,0.00032054,3]
[368496313,1751190796167,-490.0,0.00032054,3]
[368496314,1751190796176,-1906.36,0.00032054,3]
[368496315,1751190796187,-2198.76,0.00032054,3]
[368496316,1751190796197,-850.38,0.00032054,3]
[368496317,1751190796208,-1730.15,0.00032054,3]
[368496318,1751190796217,-1635.41,0.00032054,3]
[368496319,1751190796227,-1477.82,0.00032054,3]
[368496320,1751190796236,-495.37,0.00032054,3]
[368496321,1751190796246,-3000.74,0.00032054,3]
[368496322,1751190796255,-924.29,0.00032054,3]
[368496323,1751190796265,-1537.71,0.00032054,3]
[368496324,1751190796274,-818.08,0.00032054,3]
[368496325,1751190796285,-1565.54,0.00032054,3]
[368496326,1751190796294,-1894.35,0.00032054,3]
[368496327,1751190796304,-707.33,0.00032054,3]
[368496328,1751190796314,-854.62,0.00032054,3]
[368496329,1751190796323,-490.0,0.00032054,3]
[368496330,1751190796333,-2120.63,0.00032054,3]
[368496331,1751190796343,-1990.15,0.00032054,3]
[368496332,1751190796353,-501.24,0.00032054,3]
[368496333,1751190796362,-1303.39,0.00032054,3]
[368496334,1751190796371,-2057.83,0.00032054,3]
[368496335,1751190796381,-1066.81,0.00032054,3]
[368496336,1751190796391,-1078.53,0.00032054,3]
[368496337,1751190796401,-2549.31,0.00032054,3]
[368496338,1751190796410,-1514.01,0.00032054,3]
[368496339,1751190796421,-829.05,0.00032054,3]
[368496340,1751190796431,-709.69,0.00032054,3]
[368496341,1751190796441,-1413.24,0.00032054,3]
[368496342,1751190796451,-490.0,0.00032054,3]
[368496343,1751190796461,-499.7,0.00032054,3]
[368496344,1751190796471,-490.0,0.00032054,3]
[368496345,1751190796481,-7138.85,0.00032054,3]
[368496346,1751190796492,-1126.76,0.00032054,3]
[368496347,1751190796505,-1903.95,0.00032054,3]
[368496348,1751190796515,-490.0,0.00032054,3]
[368496349,1751190796525,-1687.9,0.00032054,3]
[368496350,1751190796537,-605.34,0.00032054,3]
[368496351,1751190796547,-624.57,0.00032054,3]
[368496352,1751190796556,-1080.18,0.00032054,3]
[368496353,1751190796567,-1199.32,0.00032054,3]
[368496354,1751190796578,-490.0,0.00032054,3]
[368496355,1751190796589,-1902.03,0.00032054,3]
[368496356,1751190796599,-685.5,0.00032054,3]
[368496357,1751190796609,-985.04,0.00032054,3]
[368496358,1751190796619,-2277.33,0.00032054,3]
[368496359,1751190796630,-3579.22,0.00032054,3]
[368496360,1751190796639,-1202.94,0.00032054,3]
[368496361,1751190796651,-490.0,0.00032054,3]
[368496362,1751190796661,-1406.03,0.00032054,3]
[368496363,1751190796671,-809.87,0.00032054,3]
[368496364,1751190796680,-1369.16,0.00032054,3]
[368496365,1751190796690,-2322.41,0.00032054,3]
[368496366,1751190796700,-11425.24,0.00032054,3]
[368496367,1751190796710,-892.36,0.00032054,3]
[368496368,1751190796720,-936.2,0.00032054,3]
[368496369,1751190796730,-7389.77,0.00032054,3]
[368496370,1751190796740,-2363.6,0.00032054,3]
[368496371,1751190796753,-1344.12,0.00032054,3]
[368496372,1751190796762,-490.0,0.00032054,3]
[368496373,1751190796772,-490.0,0.00032054,3]
[368496374,1751190796782,-1010.37,0.00032054,3]
[368496376,1751190796792,-3943.02,0.00032054,3]
[368496377,1751190796802,-719.55,0.00032054,3]
[368496379,1751190796812,-2127.37,0.00032054,3]
[368496380,1751190796822,-3378.38,0.00032054,3]
[368496381,1751190796832,-962.36,0.00032054,3]
[368496383,1751190796842,-1167.04,0.00032054,3]
[368496384,1751190796852,-2325.84,0.00032054,3]
[368496385,1751190796862,-1319.73,0.00032054,3]
[368496387,1751190796872,-509.95,0.00032054,3]
[368496388,1751190796882,-613.68,0.00032054,3]
[368496389,1751190796892,-2715.66,0.00032054,3]
[368496391,1751190796902,-1043.95,0.00032054,3]
[368496392,1751190796912,-1355.41,0.00032054,3]
[368496393,1751190796922,-1294.86,0.00032054,3]
[368496394,1751190796932,-2207.5,0.00032054,3]
[368496395,1751190796942,-545.36,0.00032054,3]
[368496396,1751190796952,-1588.45,0.00032054,3]
[368496397,1751190796962,-4741.41,0.00032054,3]
[368496398,1751190796973,-490.0,0.00032054,3]
[368496399,1751190796983,-317.51238946,0.00032054,3]
[368496400,1751190796993,-826.61,0.00032054,3]
[368496401,1751190797003,-3228.0,0.00032054,3]
[368496402,1751190797012,-886.06,0.00032054,3]
[368496403,1751190797022,-1170.72,0.00032054,3]
[368496404,1751190797033,-639.05877368,0.00032054,3]
[368496405,1751190797043,-9205.97,0.00032054,3]
[368496406,1751190797053,-1424.96,0.00032054,3]
[368496407,1751190797063,-2306.21,0.00032054,3]
[368496408,1751190797074,-3412.3,0.00032054,3]
[368496409,1751190797084,-728.26,0.00032054,3]
[368496410,1751190797094,-1625.19,0.00032054,3]
[368496411,1751190797104,-490.0,0.00032054,3]
[368496412,1751190797114,-1125.2,0.00032054,3]
[368496413,1751190797124,-736.63,0.00032054,3]
[368496414,1751190797134,-1386.0,0.00032054,3]
[368496415,1751190797144,-1073.8,0.00032054,3]
[368496416,1751190797155,-1530.28,0.00032054,3]
[368496417,1751190797165,-2006.57,0.00032054,3]
[368496418,1751190797175,-2091.51,0.00032054,3]
[368496419,1751190797185,-2126.77,0.00032054,3]
[368496420,1751190797196,-1779.52,0.00032054,3]
[368496421,1751190797206,-1673.45,0.00032054,3]
[368496422,1751190797216,-1303.39,0.00032054,3]
[368496423,1751190797226,-4507.51,0.00032054,3]
[368496424,1751190797236,-776.8,0.00032054,3]
[368496425,1751190797246,-490.0,0.00032054,3]
[368496426,1751190797256,-2000.1,0.00032054,3]
[368496427,1751190797266,-3480.9,0.00032054,3]
[368496428,1751190797276,-1935.08,0.00032054,3]
[368496429,1751190797287,-1632.66,0.00032054,3]
[368496430,1751190797297,-1569.37,0.00032054,3]
[368496431,1751190797307,-2530.56,0.00032054,3]
[368496432,1751190797317,-2452.49,0.00032054,3]
[368496433,1751190797328,-490.0,0.00032054,3]
[368496434,1751190797338,-1489.85,0.00032054,3]
[368496435,1751190797349,-1193.32,0.00032054,3]
[368496436,1751190797359,-2419.87,0.00032054,3]
[368496437,1751190797369,-1993.35,0.00032054,3]
[368496438,1751190797379,-588.25,0.00032054,3]
[368496439,1751190797389,-3522.67,0.00032054,3]
[368496440,1751190797399,-1690.76,0.00032054,3]
[368496441,1751190797409,-2018.73,0.00032054,3]
[368496442,1751190797419,-2243.02,0.00032054,3]
[368496443,1751190797430,-1621.16,0.00032054,3]
[368496444,1751190797440,-2069.08,0.00032054,3]
[368496445,1751190797450,-2803.72,0.00032054,3]
[368496446,1751190797460,-490.0,0.00032054,3]
[368496447,1751190797470,-697.23,0.00032054,3]
[368496448,1751190797480,-490.0,0.00032054,3]
[368496449,1751190797494,-2344.83,0.00032054,3]
[368496450,1751190797503,-1156.58,0.00032054,3]
[368496451,1751190797513,-1455.99,0.00032054,3]
[368496452,1751190797523,-896.46,0.00032054,3]
[368496453,1751190797533,-1697.89,0.00032054,3]
[368496454,1751190797543,-2847.6,0.00032054,3]
[368496455,1751190797553,-1196.0,0.00032054,3]
[368496456,1751190797563,-490.0,0.00032054,3]
[368496457,1751190797573,-2317.49,0.00032054,3]
[368496458,1751190797583,-4069.2,0.00032054,3]
[368496459,1751190797593,-1620.63,0.00032054,3]
[368496460,1751190797603,-24643.72,0.00032054,3]
[368496461,1751190797612,-3762.98,0.00032054,3]
[368496462,1751190797622,-499.82,0.00032054,3]
[368496463,1751190797633,-1069.72,0.00032054,3]
[368496464,1751190797643,-498.07,0.00032054,3]
[368496465,1751190797654,-725.1,0.00032054,3]
[368496466,1751190797663,-4782.64,0.00032054,3]
[368496467,1751190797674,-1100.83,0.00032054,3]
[368496468,1751190797684,-1824.13,0.00032054,3]